[Event "Early-Titled-Tuesday-Blitz-September-26-2023"]
[Site "Chess.com"]
[Date "2023.09.26"]
[Round "1"]
[White "Alexei_Gubajdullin"]
[Black "FlemingA"]
[Result "1-0"]
[WhiteElo "2738"]
[BlackElo "2436"]
[TimeControl "180+1"]
[EndTime "8:07:19 PDT"]
[Termination "Alexei_Gubajdullin won by resignation"]

1. d4 {[%clk 0:03:00.9]} 1... Nf6 {[%clk 0:02:56.8]} 2. Nf3 {[%clk 0:03:01]}
2... g6 {[%clk 0:02:56.6]} 3. Bf4 {[%clk 0:03:01]} 3... Bg7 {[%clk 0:02:55.6]}
4. e3 {[%clk 0:03:01.3]} 4... O-O {[%clk 0:02:55.3]} 5. Be2 {[%clk 0:03:01.6]}
5... d6 {[%clk 0:02:55.3]} 6. O-O {[%clk 0:03:01.5]} 6... b6 {[%clk 0:02:56]} 7.
h3 {[%clk 0:03:01.8]} 7... Bb7 {[%clk 0:02:56.4]} 8. a4 {[%clk 0:03:02.2]} 8...
Nbd7 {[%clk 0:02:55.4]} 9. a5 {[%clk 0:03:01.5]} 9... a6 {[%clk 0:02:49]} 10.
axb6 {[%clk 0:02:56.2]} 10... cxb6 {[%clk 0:02:49.4]} 11. c4 {[%clk 0:02:56.5]}
11... Ne4 {[%clk 0:02:47.8]} 12. Nc3 {[%clk 0:02:55.4]} 12... Ndf6 {[%clk
0:02:43.6]} 13. Qb3 {[%clk 0:02:53.8]} 13... Rb8 {[%clk 0:02:07.3]} 14. Rfc1
{[%clk 0:02:48.1]} 14... h6 {[%clk 0:02:06.6]} 15. Nd5 {[%clk 0:02:32.3]} 15...
Nxd5 {[%clk 0:01:53.9]} 16. cxd5 {[%clk 0:02:32.1]} 16... b5 {[%clk 0:01:54.8]}
17. Bd3 {[%clk 0:02:28.3]} 17... Nf6 {[%clk 0:01:47.1]} 18. e4 {[%clk
0:02:28.6]} 18... Qd7 {[%clk 0:01:38.6]} 19. Bd2 {[%clk 0:02:24.4]} 19... Rfc8
{[%clk 0:01:31.9]} 20. Ba5 {[%clk 0:02:24.4]} 20... Rxc1+ {[%clk 0:01:30.3]} 21.
Rxc1 {[%clk 0:02:24.1]} 21... Rc8 {[%clk 0:01:31.2]} 22. Rc3 {[%clk 0:02:24.2]}
22... Rxc3 {[%clk 0:01:29]} 23. bxc3 {[%clk 0:02:23.4]} 23... Qc8 {[%clk
0:01:24]} 24. Kh2 {[%clk 0:02:13.2]} 24... Nh5 {[%clk 0:01:22.1]} 25. g3 {[%clk
0:02:13.2]} 25... Nf6 {[%clk 0:01:20.6]} 26. Ne1 {[%clk 0:02:10.8]} 26... h5
{[%clk 0:01:08.6]} 27. f3 {[%clk 0:01:54.6]} 27... Bh6 {[%clk 0:01:02]} 28. Nc2
{[%clk 0:01:52.1]} 28... h4 {[%clk 0:00:57.1]} 29. g4 {[%clk 0:01:52.1]} 29...
Bf4+ {[%clk 0:00:56.9]} 30. Kg2 {[%clk 0:01:52.4]} 30... Qd7 {[%clk 0:00:42]}
31. c4 {[%clk 0:01:44.1]} 31... bxc4 {[%clk 0:00:40.5]} 32. Qxc4 {[%clk
0:01:44]} 32... Kg7 {[%clk 0:00:30.1]} 33. Be1 {[%clk 0:01:37.1]} 33... g5
{[%clk 0:00:25]} 34. Bf2 {[%clk 0:01:31.6]} 34... a5 {[%clk 0:00:19.9]} 35. Ne3
{[%clk 0:01:31.4]} 35... Bxe3 {[%clk 0:00:15.5]} 36. Bxe3 {[%clk 0:01:31.3]}
36... Nh7 {[%clk 0:00:15.1]} 37. Qb5 {[%clk 0:01:27.6]} 37... Qxb5 {[%clk
0:00:14.8]} 38. Bxb5 {[%clk 0:01:27.5]} 38... f6 {[%clk 0:00:14.5]} 39. Bd2
{[%clk 0:01:27.4]} 39... Nf8 {[%clk 0:00:12.7]} 40. Bxa5 {[%clk 0:01:27.4]}
40... Ng6 {[%clk 0:00:13.4]} 41. Kh2 {[%clk 0:01:22.8]} 41... Nf4 {[%clk
0:00:12.9]} 42. Bd2 {[%clk 0:01:22.1]} 42... Ng6 {[%clk 0:00:11.7]} 43. Kg2
{[%clk 0:01:20.3]} 43... Bc8 {[%clk 0:00:12]} 44. Kf2 {[%clk 0:01:17.4]} 44...
Kf7 {[%clk 0:00:11.1]} 45. Be3 {[%clk 0:01:17.1]} 45... Kg7 {[%clk 0:00:10.4]}
46. Ke1 {[%clk 0:01:17.2]} 46... Kf7 {[%clk 0:00:10.8]} 47. Kd2 {[%clk
0:01:17.4]} 47... Nf8 {[%clk 0:00:09.1]} 48. Kc3 {[%clk 0:01:17.1]} 48... Nd7
{[%clk 0:00:08.9]} 49. Kb4 {[%clk 0:01:16.9]} 49... Nf8 {[%clk 0:00:06.2]} 50.
Ka5 {[%clk 0:01:17]} 50... Bd7 {[%clk 0:00:06.9]} 51. Bc6 {[%clk 0:01:16.1]}
51... Bc8 {[%clk 0:00:05.7]} 52. Kb6 {[%clk 0:01:15.9]} 52... Ng6 {[%clk
0:00:04.6]} 53. Ka7 {[%clk 0:01:14]} 53... Nf8 {[%clk 0:00:04.7]} 54. Bb5 {[%clk
0:01:12.7]} 54... Bd7 {[%clk 0:00:04.2]} 55. Bc6 {[%clk 0:01:13]} 55... Bc8
{[%clk 0:00:04.5]} 56. Bd2 {[%clk 0:01:11.6]} 56... Bd7 {[%clk 0:00:04.6]} 57.
Kb8 {[%clk 0:01:10.4]} 57... Ke8 {[%clk 0:00:05.1]} 58. Kc7 {[%clk 0:01:09.4]}
58... e6 {[%clk 0:00:04.2]} 59. Bxd7+ {[%clk 0:01:04.6]} 59... Nxd7 {[%clk
0:00:04]} 60. dxe6 {[%clk 0:01:04.9]} 60... Nf8 {[%clk 0:00:04.1]} 61. Kxd6
{[%clk 0:01:03.2]} 1-0

[Event "Early-Titled-Tuesday-Blitz-September-26-2023"]
[Site "Chess.com"]
[Date "2023.09.26"]
[Round "1"]
[White "DuleMudule"]
[Black "HajiyevKanan"]
[Result "1-0"]
[WhiteElo "2761"]
[BlackElo "2459"]
[TimeControl "180+1"]
[EndTime "8:07:23 PDT"]
[Termination "DuleMudule won on time"]

1. d4 {[%clk 0:03:00.9]} 1... Nf6 {[%clk 0:02:59]} 2. Bg5 {[%clk 0:03:00.3]}
2... Ne4 {[%clk 0:02:57]} 3. h4 {[%clk 0:02:59.9]} 3... d5 {[%clk 0:02:57.1]} 4.
Nd2 {[%clk 0:02:59.2]} 4... h6 {[%clk 0:02:52.8]} 5. Nxe4 {[%clk 0:02:44.7]}
5... dxe4 {[%clk 0:02:51.7]} 6. Bf4 {[%clk 0:02:45]} 6... Bf5 {[%clk 0:02:43.1]}
7. e3 {[%clk 0:02:41.2]} 7... e6 {[%clk 0:02:41.4]} 8. c3 {[%clk 0:02:39.2]}
8... Bd6 {[%clk 0:02:38]} 9. g4 {[%clk 0:02:31.9]} 9... Bh7 {[%clk 0:02:32.6]}
10. Ne2 {[%clk 0:02:31.2]} 10... Nd7 {[%clk 0:02:26.6]} 11. Bg2 {[%clk
0:02:30.6]} 11... f5 {[%clk 0:02:25.3]} 12. g5 {[%clk 0:02:29.2]} 12... e5
{[%clk 0:02:06.1]} 13. dxe5 {[%clk 0:02:18.5]} 13... Nxe5 {[%clk 0:02:07]} 14.
Bxe5 {[%clk 0:02:17.8]} 14... Bxe5 {[%clk 0:02:07.9]} 15. Qb3 {[%clk 0:02:17.8]}
15... Ke7 {[%clk 0:01:17.6]} 16. Rd1 {[%clk 0:02:13.3]} 16... Bg8 {[%clk
0:00:59.6]} 17. Qb5 {[%clk 0:02:04]} 17... Bd6 {[%clk 0:00:54.6]} 18. Nf4 {[%clk
0:02:03.9]} 18... Qe8 {[%clk 0:00:44.6]} 19. Qxf5 {[%clk 0:02:02.3]} 19... Bxf4
{[%clk 0:00:37]} 20. Qxf4 {[%clk 0:01:56]} 20... hxg5 {[%clk 0:00:37.1]} 21.
Qxg5+ {[%clk 0:01:43.3]} 21... Kf8 {[%clk 0:00:36.7]} 22. Rd4 {[%clk 0:01:42.8]}
22... Qe7 {[%clk 0:00:31.6]} 23. Qf4+ {[%clk 0:01:41.5]} 23... Qf7 {[%clk
0:00:28.6]} 24. Qxe4 {[%clk 0:01:36.7]} 24... Re8 {[%clk 0:00:28.6]} 25. Qxb7
{[%clk 0:01:36.5]} 25... Rh6 {[%clk 0:00:24.5]} 26. Qb4+ {[%clk 0:01:31.6]}
26... Qe7 {[%clk 0:00:22.1]} 27. Rf4+ {[%clk 0:01:30.7]} 27... Rf6 {[%clk
0:00:22]} 28. Rxf6+ {[%clk 0:01:30.7]} 28... gxf6 {[%clk 0:00:20.7]} 29. Qxe7+
{[%clk 0:01:31.6]} 29... Kxe7 {[%clk 0:00:20.4]} 30. h5 {[%clk 0:01:32.3]} 30...
Bxa2 {[%clk 0:00:20]} 31. h6 {[%clk 0:01:31.7]} 31... Rh8 {[%clk 0:00:20.3]} 32.
Be4 {[%clk 0:01:30.7]} 32... Be6 {[%clk 0:00:19.6]} 33. Bg6 {[%clk 0:01:28.9]}
33... f5 {[%clk 0:00:19.9]} 34. e4 {[%clk 0:01:28.7]} 34... fxe4 {[%clk
0:00:18.5]} 35. Bxe4 {[%clk 0:01:29.6]} 35... Kf6 {[%clk 0:00:18.9]} 36. f4
{[%clk 0:01:29.3]} 36... Bf7 {[%clk 0:00:16]} 37. Kf2 {[%clk 0:01:26.7]} 37...
Rb8 {[%clk 0:00:15.9]} 38. h7 {[%clk 0:01:24.7]} 38... Kg7 {[%clk 0:00:16.3]}
39. Ke3 {[%clk 0:01:22.8]} 39... Kh8 {[%clk 0:00:14.6]} 40. b4 {[%clk
0:01:21.3]} 40... Bc4 {[%clk 0:00:12.4]} 41. Rh5 {[%clk 0:01:18.4]} 41... Re8
{[%clk 0:00:11.3]} 42. Re5 {[%clk 0:01:17]} 42... Rxe5 {[%clk 0:00:07.7]} 43.
fxe5 {[%clk 0:01:16.6]} 43... Be6 {[%clk 0:00:08.6]} 44. Kd4 {[%clk 0:01:16.5]}
44... Kg7 {[%clk 0:00:09]} 45. Kc5 {[%clk 0:01:15.7]} 45... Bd7 {[%clk
0:00:09.6]} 46. Kd5 {[%clk 0:01:15.2]} 46... Kh8 {[%clk 0:00:07.2]} 47. e6
{[%clk 0:01:15.3]} 47... Be8 {[%clk 0:00:08]} 48. Ke5 {[%clk 0:01:13.9]} 48...
Kg7 {[%clk 0:00:08.9]} 49. c4 {[%clk 0:01:09.2]} 49... Ba4 {[%clk 0:00:07.3]}
50. b5 {[%clk 0:01:08.4]} 50... Bd1 {[%clk 0:00:06.9]} 51. e7 {[%clk 0:01:05.7]}
51... Bh5 {[%clk 0:00:05.8]} 52. Bc6 {[%clk 0:01:06.3]} 52... Kxh7 {[%clk
0:00:05.4]} 53. e8=Q {[%clk 0:01:06.4]} 53... Bxe8 {[%clk 0:00:06.3]} 54. Bxe8
{[%clk 0:01:06.7]} 54... Kg7 {[%clk 0:00:07.2]} 55. Ke6 {[%clk 0:01:06.7]} 55...
Kf8 {[%clk 0:00:08.1]} 56. Kd7 {[%clk 0:01:06.4]} 56... c5 {[%clk 0:00:04.7]}
57. bxc6 {[%clk 0:01:05.5]} 57... a5 {[%clk 0:00:05.4]} 58. c7 {[%clk
0:01:05.9]} 58... a4 {[%clk 0:00:06.1]} 59. c8=Q {[%clk 0:01:06.5]} 59... a3
{[%clk 0:00:07]} 60. Bh5+ {[%clk 0:01:06.5]} 60... Kg7 {[%clk 0:00:06.7]} 61.
Qc5 {[%clk 0:01:06.3]} 1-0

[Event "Early-Titled-Tuesday-Blitz-September-26-2023"]
[Site "Chess.com"]
[Date "2023.09.26"]
[Round "1"]
[White "zajka-molotok"]
[Black "C_K_G"]
[Result "1-0"]
[WhiteElo "2533"]
[BlackElo "1868"]
[TimeControl "180+1"]
[EndTime "8:07:23 PDT"]
[Termination "zajka-molotok won by resignation"]

1. e4 {[%clk 0:02:59.5]} 1... c5 {[%clk 0:03:00.2]} 2. Nf3 {[%clk 0:02:59.2]}
2... d6 {[%clk 0:03:00.5]} 3. Bb5+ {[%clk 0:02:59]} 3... Bd7 {[%clk 0:02:59.8]}
4. Bxd7+ {[%clk 0:02:55.7]} 4... Qxd7 {[%clk 0:02:59.7]} 5. c4 {[%clk
0:02:56.1]} 5... e6 {[%clk 0:02:57.9]} 6. Nc3 {[%clk 0:02:54.6]} 6... Nc6 {[%clk
0:02:57.6]} 7. d4 {[%clk 0:02:54.4]} 7... cxd4 {[%clk 0:02:57.5]} 8. Nxd4 {[%clk
0:02:55.3]} 8... Nxd4 {[%clk 0:02:56.9]} 9. Qxd4 {[%clk 0:02:55]} 9... Nf6
{[%clk 0:02:56.2]} 10. O-O {[%clk 0:02:45.4]} 10... Be7 {[%clk 0:02:56.2]} 11.
Rd1 {[%clk 0:02:42]} 11... Qc6 {[%clk 0:02:48]} 12. Bg5 {[%clk 0:02:23.7]} 12...
O-O {[%clk 0:02:31.7]} 13. Rac1 {[%clk 0:02:14.7]} 13... Rfd8 {[%clk 0:02:29.8]}
14. Qd3 {[%clk 0:02:10.1]} 14... a6 {[%clk 0:02:23.4]} 15. a4 {[%clk 0:01:55.4]}
15... Rac8 {[%clk 0:02:20.7]} 16. b3 {[%clk 0:01:54.1]} 16... Rc7 {[%clk
0:02:04.5]} 17. Be3 {[%clk 0:01:47.5]} 17... Ng4 {[%clk 0:01:47.2]} 18. Bd4
{[%clk 0:01:36.4]} 18... Bg5 {[%clk 0:01:19.2]} 19. Rb1 {[%clk 0:01:22.4]} 19...
Be7 {[%clk 0:00:43.3]} 20. a5 {[%clk 0:01:17.7]} 20... Rcd7 {[%clk 0:00:39.6]}
21. Bb6 {[%clk 0:01:16.4]} 21... Rc8 {[%clk 0:00:39.2]} 22. Rbc1 {[%clk
0:01:09.8]} 22... Bg5 {[%clk 0:00:34.7]} 23. Rc2 {[%clk 0:01:09.6]} 23... Ne5
{[%clk 0:00:33.6]} 24. Qg3 {[%clk 0:01:05.5]} 24... Bf6 {[%clk 0:00:31.9]} 25.
Bd4 {[%clk 0:00:59.9]} 25... Rdd8 {[%clk 0:00:23.1]} 26. Rcd2 {[%clk 0:00:56.6]}
26... h6 {[%clk 0:00:17]} 27. h3 {[%clk 0:00:28.9]} 27... Re8 {[%clk 0:00:09]}
28. f4 {[%clk 0:00:26.6]} 28... Nd7 {[%clk 0:00:07.3]} 29. Bxf6 {[%clk
0:00:25.4]} 29... Nxf6 {[%clk 0:00:08.2]} 30. Rxd6 {[%clk 0:00:25.7]} 30... Qc5+
{[%clk 0:00:08.1]} 31. Qf2 {[%clk 0:00:23.1]} 31... Qb4 {[%clk 0:00:07.6]} 32.
R6d3 {[%clk 0:00:20.7]} 32... Qxa5 {[%clk 0:00:06.7]} 33. e5 {[%clk 0:00:20.6]}
33... Nh7 {[%clk 0:00:06]} 34. Ne4 {[%clk 0:00:20.6]} 34... Nf8 {[%clk
0:00:05.5]} 35. Nd6 {[%clk 0:00:20.6]} 35... Rcd8 {[%clk 0:00:05.2]} 36. Nxe8
{[%clk 0:00:20.5]} 36... Rxe8 {[%clk 0:00:06.1]} 37. Qd2 {[%clk 0:00:18.6]}
37... Kh7 {[%clk 0:00:04.7]} 38. Qxa5 {[%clk 0:00:18.4]} 1-0

[Event "Early-Titled-Tuesday-Blitz-September-26-2023"]
[Site "Chess.com"]
[Date "2023.09.26"]
[Round "1"]
[White "sonicdravise"]
[Black "Aleksandar-Topalov"]
[Result "1-0"]
[WhiteElo "2671"]
[BlackElo "2370"]
[TimeControl "180+1"]
[EndTime "8:07:24 PDT"]
[Termination "sonicdravise won on time"]

1. d4 {[%clk 0:02:51.3]} 1... e6 {[%clk 0:02:59.6]} 2. c4 {[%clk 0:02:50.6]}
2... f5 {[%clk 0:02:58.6]} 3. Nf3 {[%clk 0:02:49.7]} 3... Nf6 {[%clk 0:02:58.1]}
4. Nc3 {[%clk 0:02:49.6]} 4... Bb4 {[%clk 0:02:54.8]} 5. Qb3 {[%clk 0:02:36.2]}
5... a5 {[%clk 0:02:52.1]} 6. Bg5 {[%clk 0:02:30.3]} 6... O-O {[%clk 0:02:48.3]}
7. g3 {[%clk 0:02:29.2]} 7... h6 {[%clk 0:02:36]} 8. Bxf6 {[%clk 0:02:26.7]}
8... Qxf6 {[%clk 0:02:35.7]} 9. Bg2 {[%clk 0:02:25.5]} 9... Nc6 {[%clk
0:02:33.4]} 10. a3 {[%clk 0:02:11.2]} 10... a4 {[%clk 0:01:59.1]} 11. Qc2 {[%clk
0:02:10.9]} 11... Bxc3+ {[%clk 0:01:55.6]} 12. Qxc3 {[%clk 0:02:11.8]} 12... d6
{[%clk 0:01:49.3]} 13. O-O {[%clk 0:02:10.1]} 13... e5 {[%clk 0:01:47.9]} 14.
dxe5 {[%clk 0:01:56.8]} 14... dxe5 {[%clk 0:01:45.1]} 15. Rad1 {[%clk
0:01:46.2]} 15... Be6 {[%clk 0:01:43]} 16. e3 {[%clk 0:01:35.1]} 16... Rfd8
{[%clk 0:01:37.5]} 17. h4 {[%clk 0:01:22.8]} 17... e4 {[%clk 0:01:20.5]} 18. Nd4
{[%clk 0:01:10.5]} 18... Ne5 {[%clk 0:01:08.5]} 19. Nxe6 {[%clk 0:01:06.4]}
19... Qxe6 {[%clk 0:01:08]} 20. Qb4 {[%clk 0:00:57.8]} 20... Nd3 {[%clk
0:00:46]} 21. Qxb7 {[%clk 0:00:57]} 21... Qxc4 {[%clk 0:00:32.3]} 22. Rxd3
{[%clk 0:00:12.2]} 22... exd3 {[%clk 0:00:17.8]} 23. Qf3 {[%clk 0:00:12.6]}
23... d2 {[%clk 0:00:15.8]} 24. Rd1 {[%clk 0:00:05.5]} 24... Rab8 {[%clk
0:00:15.5]} 25. Qxf5 {[%clk 0:00:03.3]} 25... Rxb2 {[%clk 0:00:10.9]} 26. Qe5
{[%clk 0:00:03.7]} 26... Rc2 {[%clk 0:00:07.6]} 27. Qe7 {[%clk 0:00:03.9]} 27...
Qd3 {[%clk 0:00:05.1]} 28. Be4 {[%clk 0:00:03.5]} 28... Rc1 {[%clk 0:00:03.1]}
29. Bxd3 {[%clk 0:00:02.9]} 29... Rxd1+ {[%clk 0:00:02.9]} 30. Kg2 {[%clk
0:00:02.7]} 30... Rxd3 {[%clk 0:00:01.6]} 31. Qe8+ {[%clk 0:00:03.2]} 31... Kh7
{[%clk 0:00:02]} 32. Qe4+ {[%clk 0:00:03.8]} 32... Kg8 {[%clk 0:00:02.6]} 33.
Qxd3 {[%clk 0:00:04.1]} 1-0

[Event "Early-Titled-Tuesday-Blitz-September-26-2023"]
[Site "Chess.com"]
[Date "2023.09.26"]
[Round "1"]
[White "enestnrvrd"]
[Black "KorolDimitriy75"]
[Result "1-0"]
[WhiteElo "2671"]
[BlackElo "2371"]
[TimeControl "180+1"]
[EndTime "8:07:26 PDT"]
[Termination "enestnrvrd won on time"]

1. d4 {[%clk 0:02:59.9]} 1... Nf6 {[%clk 0:02:59.6]} 2. c4 {[%clk 0:02:59.5]}
2... c5 {[%clk 0:02:59.8]} 3. d5 {[%clk 0:02:59.5]} 3... b5 {[%clk 0:03:00]} 4.
cxb5 {[%clk 0:03:00.4]} 4... a6 {[%clk 0:03:00.4]} 5. b6 {[%clk 0:02:58.2]} 5...
d6 {[%clk 0:03:00.4]} 6. Nc3 {[%clk 0:02:58]} 6... Nbd7 {[%clk 0:03:00.3]} 7.
Nf3 {[%clk 0:02:57.7]} 7... g6 {[%clk 0:03:00.4]} 8. e4 {[%clk 0:02:58]} 8...
Bg7 {[%clk 0:03:00.4]} 9. a4 {[%clk 0:02:57.4]} 9... a5 {[%clk 0:03:00.1]} 10.
Bb5 {[%clk 0:02:53.4]} 10... O-O {[%clk 0:02:59.7]} 11. O-O {[%clk 0:02:52.9]}
11... Nxb6 {[%clk 0:02:59.4]} 12. Re1 {[%clk 0:02:53.2]} 12... e6 {[%clk
0:02:59.4]} 13. dxe6 {[%clk 0:02:44.1]} 13... Bxe6 {[%clk 0:03:00.3]} 14. Ng5
{[%clk 0:02:41.5]} 14... Bc4 {[%clk 0:02:37.4]} 15. Bf4 {[%clk 0:02:38.5]} 15...
h6 {[%clk 0:02:07.1]} 16. Nf3 {[%clk 0:02:34]} 16... d5 {[%clk 0:01:57.3]} 17.
Bxc4 {[%clk 0:02:28]} 17... dxc4 {[%clk 0:01:38.7]} 18. Qxd8 {[%clk 0:02:26.6]}
18... Rfxd8 {[%clk 0:01:33.9]} 19. Bc7 {[%clk 0:02:27.5]} 19... Nfd7 {[%clk
0:01:17.9]} 20. Bxd8 {[%clk 0:02:25.5]} 20... Rxd8 {[%clk 0:01:18.8]} 21. Rad1
{[%clk 0:02:23.7]} 21... Re8 {[%clk 0:01:15.5]} 22. h3 {[%clk 0:01:58.2]} 22...
Ne5 {[%clk 0:01:09]} 23. Nxe5 {[%clk 0:01:38.5]} 23... Bxe5 {[%clk 0:01:09.9]}
24. g3 {[%clk 0:01:15.4]} 24... Bxc3 {[%clk 0:00:26.9]} 25. bxc3 {[%clk
0:01:14]} 25... Nxa4 {[%clk 0:00:27.8]} 26. Ra1 {[%clk 0:01:14.5]} 26... Nxc3
{[%clk 0:00:24.8]} 27. Rxa5 {[%clk 0:01:14.5]} 27... Rxe4 {[%clk 0:00:19.8]} 28.
Kf1 {[%clk 0:00:58.8]} 28... Rd4 {[%clk 0:00:15]} 29. Rxc5 {[%clk 0:00:55.8]}
29... Nd5 {[%clk 0:00:14.3]} 30. Kg2 {[%clk 0:00:35.9]} 30... Kg7 {[%clk
0:00:12.4]} 31. Re8 {[%clk 0:00:30.7]} 31... c3 {[%clk 0:00:10.4]} 32. Rec8
{[%clk 0:00:27.1]} 32... Rd2 {[%clk 0:00:08.1]} 33. Kf3 {[%clk 0:00:25.4]} 33...
Kf6 {[%clk 0:00:05.6]} 34. Rd8 {[%clk 0:00:19.8]} 34... Ke6 {[%clk 0:00:05.7]}
35. Rc6+ {[%clk 0:00:19.1]} 35... Ke5 {[%clk 0:00:05.7]} 36. Rc5 {[%clk
0:00:15]} 36... Ke6 {[%clk 0:00:04.5]} 37. Rdc8 {[%clk 0:00:15.2]} 37... h5
{[%clk 0:00:03.9]} 38. h4 {[%clk 0:00:15.3]} 38... Rd3+ {[%clk 0:00:03.5]} 39.
Ke2 {[%clk 0:00:14.5]} 39... Rd2+ {[%clk 0:00:03.7]} 40. Ke1 {[%clk 0:00:15.1]}
40... Ke5 {[%clk 0:00:02.8]} 41. Rxc3 {[%clk 0:00:13.8]} 1-0

[Event "Early-Titled-Tuesday-Blitz-September-26-2023"]
[Site "Chess.com"]
[Date "2023.09.26"]
[Round "1"]
[White "GG91"]
[Black "Bodhanas"]
[Result "0-1"]
[WhiteElo "2275"]
[BlackElo "2040"]
[TimeControl "180+1"]
[EndTime "8:07:27 PDT"]
[Termination "Bodhanas won by checkmate"]

1. d4 {[%clk 0:02:58.6]} 1... d6 {[%clk 0:02:43.9]} 2. Nf3 {[%clk 0:02:57.1]}
2... Nf6 {[%clk 0:02:40.4]} 3. e3 {[%clk 0:02:56.8]} 3... g6 {[%clk 0:02:37.5]}
4. Bd3 {[%clk 0:02:57.7]} 4... Bg7 {[%clk 0:02:36.9]} 5. O-O {[%clk 0:02:58]}
5... O-O {[%clk 0:02:36.2]} 6. c3 {[%clk 0:02:57.6]} 6... Bg4 {[%clk 0:02:28.3]}
7. h3 {[%clk 0:02:57]} 7... Bxf3 {[%clk 0:02:27.6]} 8. Qxf3 {[%clk 0:02:57.9]}
8... c6 {[%clk 0:02:26.5]} 9. Nd2 {[%clk 0:02:57.4]} 9... Nbd7 {[%clk
0:02:25.8]} 10. e4 {[%clk 0:02:57.8]} 10... e5 {[%clk 0:02:25.5]} 11. Re1 {[%clk
0:02:56.5]} 11... Re8 {[%clk 0:02:23.4]} 12. Nc4 {[%clk 0:02:55.5]} 12... Qc7
{[%clk 0:02:20.7]} 13. b3 {[%clk 0:02:49.7]} 13... b5 {[%clk 0:02:01.4]} 14. Ne3
{[%clk 0:02:43]} 14... d5 {[%clk 0:01:53.7]} 15. Ng4 {[%clk 0:02:30.8]} 15...
dxe4 {[%clk 0:01:49.9]} 16. Nxf6+ {[%clk 0:02:29.2]} 16... Nxf6 {[%clk
0:01:47.9]} 17. Bxe4 {[%clk 0:02:28.5]} 17... exd4 {[%clk 0:01:40.9]} 18. Bf4
{[%clk 0:02:19.1]} 18... Qb6 {[%clk 0:01:25.8]} 19. Bxc6 {[%clk 0:02:17.3]}
19... Rxe1+ {[%clk 0:01:25.1]} 20. Rxe1 {[%clk 0:02:18.2]} 20... Rc8 {[%clk
0:01:23.9]} 21. Be4 {[%clk 0:01:13.6]} 21... Nxe4 {[%clk 0:01:20.8]} 22. Qxe4
{[%clk 0:01:10.9]} 22... dxc3 {[%clk 0:01:11.4]} 23. b4 {[%clk 0:00:53.5]} 23...
h6 {[%clk 0:01:05.7]} 24. Be3 {[%clk 0:00:45.6]} 24... Qc6 {[%clk 0:00:55.1]}
25. Qc2 {[%clk 0:00:42.9]} 25... a6 {[%clk 0:00:52.8]} 26. Bc5 {[%clk
0:00:42.7]} 26... Rd8 {[%clk 0:00:49.4]} 27. Re2 {[%clk 0:00:41.5]} 27... Qd5
{[%clk 0:00:48]} 28. Kh2 {[%clk 0:00:34.5]} 28... Qd3 {[%clk 0:00:35.6]} 29. g3
{[%clk 0:00:28.5]} 29... Qxc2 {[%clk 0:00:34]} 30. Rxc2 {[%clk 0:00:29.4]} 30...
Rd2 {[%clk 0:00:34]} 31. Rc1 {[%clk 0:00:28]} 31... Rxa2 {[%clk 0:00:33.3]} 32.
Kg2 {[%clk 0:00:28.3]} 32... c2 {[%clk 0:00:23.3]} 33. Be3 {[%clk 0:00:27]}
33... Bc3 {[%clk 0:00:21.6]} 34. Kf3 {[%clk 0:00:23]} 34... Bxb4 {[%clk
0:00:21.6]} 35. Ke2 {[%clk 0:00:23.2]} 35... Bf8 {[%clk 0:00:20.2]} 36. Bd4
{[%clk 0:00:20.7]} 36... b4 {[%clk 0:00:19.7]} 37. Kd3 {[%clk 0:00:21.2]} 37...
b3 {[%clk 0:00:19.7]} 38. Kc3 {[%clk 0:00:20.8]} 38... b2 {[%clk 0:00:19]} 39.
Kxc2 {[%clk 0:00:16.8]} 39... bxc1=Q+ {[%clk 0:00:18.5]} 40. Kxc1 {[%clk
0:00:17.3]} 40... Bg7 {[%clk 0:00:18.2]} 41. Kb1 {[%clk 0:00:17.2]} 41... Bxd4
{[%clk 0:00:18.3]} 42. Kxa2 {[%clk 0:00:17.5]} 42... Bxf2 {[%clk 0:00:19]} 43.
g4 {[%clk 0:00:17.2]} 43... f5 {[%clk 0:00:19.7]} 44. gxf5 {[%clk 0:00:16.3]}
44... gxf5 {[%clk 0:00:20.3]} 45. Kb3 {[%clk 0:00:17.1]} 45... Bd4 {[%clk
0:00:20.4]} 46. Kc4 {[%clk 0:00:17.8]} 46... f4 {[%clk 0:00:20.4]} 47. Kxd4
{[%clk 0:00:18.7]} 47... a5 {[%clk 0:00:20.9]} 48. Ke4 {[%clk 0:00:18.9]} 48...
a4 {[%clk 0:00:21.6]} 49. Kxf4 {[%clk 0:00:19.8]} 49... a3 {[%clk 0:00:22.3]}
50. Kf5 {[%clk 0:00:20.2]} 50... a2 {[%clk 0:00:22.9]} 51. h4 {[%clk 0:00:20.6]}
51... a1=Q {[%clk 0:00:23.4]} 52. h5 {[%clk 0:00:21.5]} 52... Qa5+ {[%clk
0:00:23.3]} 53. Kg6 {[%clk 0:00:21.7]} 53... Qg5# {[%clk 0:00:23.5]} 0-1

[Event "Early-Titled-Tuesday-Blitz-September-26-2023"]
[Site "Chess.com"]
[Date "2023.09.26"]
[Round "1"]
[White "Fore_Man"]
[Black "SashaKuzhilniy"]
[Result "0-1"]
[WhiteElo "2276"]
[BlackElo "2606"]
[TimeControl "180+1"]
[EndTime "8:07:30 PDT"]
[Termination "SashaKuzhilniy won on time"]

1. Nf3 {[%clk 0:03:00.9]} 1... Nf6 {[%clk 0:02:58.6]} 2. c4 {[%clk 0:03:01.3]}
2... Nc6 {[%clk 0:02:56.9]} 3. d4 {[%clk 0:03:01.8]} 3... e5 {[%clk 0:02:45.4]}
4. dxe5 {[%clk 0:03:01]} 4... Ng4 {[%clk 0:02:45.2]} 5. Bf4 {[%clk 0:02:58.9]}
5... Bb4+ {[%clk 0:02:42.8]} 6. Nc3 {[%clk 0:02:58.1]} 6... Qe7 {[%clk
0:02:42.5]} 7. e3 {[%clk 0:02:55.5]} 7... Bxc3+ {[%clk 0:02:41.7]} 8. bxc3
{[%clk 0:02:55.3]} 8... Ngxe5 {[%clk 0:02:42.2]} 9. Nxe5 {[%clk 0:02:53]} 9...
Nxe5 {[%clk 0:02:43.1]} 10. Be2 {[%clk 0:02:44.8]} 10... d6 {[%clk 0:02:33.7]}
11. O-O {[%clk 0:02:42.6]} 11... O-O {[%clk 0:02:32.7]} 12. Rb1 {[%clk
0:02:37.5]} 12... b6 {[%clk 0:02:28.3]} 13. c5 {[%clk 0:02:06.6]} 13... bxc5
{[%clk 0:02:10.3]} 14. Bxe5 {[%clk 0:01:54.1]} 14... Qxe5 {[%clk 0:01:57]} 15.
Bf3 {[%clk 0:01:53.2]} 15... Bf5 {[%clk 0:01:47.3]} 16. Rb7 {[%clk 0:01:44.8]}
16... Rfc8 {[%clk 0:01:27.3]} 17. Qa4 {[%clk 0:01:33.3]} 17... Qxc3 {[%clk
0:01:15.1]} 18. Rxc7 {[%clk 0:01:22.8]} 18... Rxc7 {[%clk 0:01:08.2]} 19. Bxa8
{[%clk 0:01:22.5]} 19... h6 {[%clk 0:01:02.3]} 20. Qe8+ {[%clk 0:01:18.3]} 20...
Kh7 {[%clk 0:01:02.2]} 21. Bd5 {[%clk 0:01:18.9]} 21... Bg6 {[%clk 0:00:52.1]}
22. Qd8 {[%clk 0:01:17.8]} 22... Qa5 {[%clk 0:00:45.8]} 23. Qxd6 {[%clk
0:01:08.2]} 23... c4 {[%clk 0:00:45.7]} 24. h4 {[%clk 0:01:01.8]} 24... Qc5
{[%clk 0:00:39.7]} 25. Qd8 {[%clk 0:00:35.1]} 25... c3 {[%clk 0:00:34.9]} 26.
Rc1 {[%clk 0:00:32]} 26... Qa3 {[%clk 0:00:24.9]} 27. Re1 {[%clk 0:00:19.3]}
27... Rc5 {[%clk 0:00:23.7]} 28. h5 {[%clk 0:00:17]} 28... Bxh5 {[%clk
0:00:21.6]} 29. Be4+ {[%clk 0:00:14.5]} 29... Bg6 {[%clk 0:00:22.1]} 30. Qd4
{[%clk 0:00:05.4]} 30... c2 {[%clk 0:00:20]} 31. Kh2 {[%clk 0:00:03.6]} 31...
c1=Q {[%clk 0:00:19]} 32. Rxc1 {[%clk 0:00:03.8]} 32... Rxc1 {[%clk 0:00:19.2]}
33. Bxg6+ {[%clk 0:00:04.7]} 33... fxg6 {[%clk 0:00:19.7]} 34. f4 {[%clk
0:00:03.3]} 34... Qxa2 {[%clk 0:00:15.6]} 35. f5 {[%clk 0:00:02.1]} 35... gxf5
{[%clk 0:00:15.8]} 36. Qe5 {[%clk 0:00:02.5]} 36... Qc2 {[%clk 0:00:14.2]} 37.
Kg3 {[%clk 0:00:01.9]} 37... Rg1 {[%clk 0:00:12.2]} 0-1